bitfinex/quotes_SOLUSD_20250508
["timestamp","ask_amount","ask_price","bid_price","bid_amount"]
[1746695992085,6.4694,152.97,152.87,26.0]
[1746695992086,11.29652505,152.92,152.87,26.0]
[1746695992296,11.29652505,152.91,152.87,26.0]
[1746695992888,11.29652505,152.92,152.87,37.29652505]
[1746695993096,11.29652505,152.92,152.88,11.29652505]
[1746695994883,17.83599618,152.92,152.88,11.29652505]
[1746695995807,17.83599618,152.92,152.87,29.24443991]
[1746695995984,6.53947113,152.92,152.88,11.29652505]
[1746695996502,17.83599618,152.92,152.88,11.29652505]
[1746695997309,6.53947113,152.92,152.88,11.29652505]
[1746695997692,6.53947113,152.92,152.89,11.29652505]
[1746695997903,6.53808434,152.95,152.9,11.29652505]
[1746695998204,11.29652505,152.94,152.89,11.29652505]
[1746695998388,11.29652505,152.94,152.9,11.29652505]
[1746695998577,11.29652505,152.93,152.89,11.29652505]
[1746695999811,6.5391492,152.93,152.9,11.29652505]
[1746696000105,17.83567425,152.93,152.89,11.29652505]
[1746696000606,6.5391492,152.93,152.89,11.29652505]
[1746696000992,11.29652505,152.92,152.87,29.24443991]
[1746696001196,6.53979465,152.91,152.87,37.29652505]
[1746696001509,6.53979465,152.91,152.88,11.29652505]
[1746696002014,6.53979465,152.91,152.87,26.0]
[1746696002015,6.53979465,152.91,152.89,11.29652505]
[1746696002383,6.53979465,152.91,152.88,11.29652505]
[1746696004212,11.29652505,152.92,152.88,11.29652505]
[1746696004790,11.29652505,152.93,152.88,11.29652505]
[1746696005414,11.29652505,152.93,152.89,11.29652505]
[1746696005913,6.53936698,152.92,152.89,10.79652505]
[1746696006296,6.4178,153.16,153.02,10.0]
[1746696006505,6.4178,153.16,153.02,21.29652505]
[1746696006506,11.29652505,153.09,153.02,21.29652505]
[1746696006694,11.29652505,153.08,153.02,21.29652505]
[1746696007008,11.29652505,153.04,153.02,12.4]
[1746696007187,51.06132005,153.03,153.02,12.4]
[1746696007804,57.59600694,153.03,153.02,12.4]
[1746696008196,46.29948189,153.03,153.02,12.4]
[1746696010692,46.29948189,153.03,153.01,21.29652505]
[1746696011113,46.29948189,153.03,153.01,10.0]
[1746696011320,46.29948189,153.03,153.0,10.0]
[1746696011509,46.29948189,153.03,153.0,21.29652505]
[1746696012221,46.29948189,153.03,153.0,11.29652505]
[1746696012422,46.29948189,153.03,153.01,12.4]
[1746696013126,46.29948189,153.03,153.01,22.4]
[1746696013624,46.29948189,153.03,153.02,10.0]
[1746696016622,39.764795,153.03,153.02,21.29652505]
[1746696017506,39.764795,153.03,153.02,28.79652505]
[1746696019829,39.764795,153.03,153.02,54.79652505]
[1746696028735,39.764795,153.03,153.02,61.3316185]
[1746696029245,39.764795,153.03,153.02,54.79652505]
[1746696030427,39.764795,153.03,153.02,53.98126736]
[1746696031542,39.764795,153.03,153.02,17.5]
[1746696031916,46.2994614,153.03,153.02,17.5]
[1746696034446,46.2994614,153.03,153.02,28.79652505]
[1746696040749,46.2994614,153.03,153.02,17.5]
[1746696042445,46.2994614,153.03,153.02,28.79652505]
[1746696044145,46.2994614,153.03,153.02,17.5]
[1746696044949,46.2994614,153.03,153.02,28.79652505]
[1746696045335,46.2994614,153.03,153.02,17.5]
[1746696050352,39.764795,153.03,153.02,17.5]
[1746696050651,39.764795,153.03,153.02,28.79652505]
[1746696052272,39.764795,153.03,153.02,35.3316185]
[1746696053162,39.764795,153.03,153.02,103.98126736]
[1746696053542,39.764795,153.03,153.02,129.98126736]
[1746696053760,39.764795,153.03,153.02,228.84126736]
[1746696058564,39.764795,153.03,153.02,222.30617391]
[1746696059039,39.764795,153.03,153.02,228.84126736]
[1746696059239,39.764795,153.03,153.02,222.30617391]
[1746696059435,39.764795,153.03,153.02,228.84126736]
[1746696063568,39.764795,153.03,153.02,222.30617391]
[1746696064041,39.764795,153.03,153.02,228.84126736]
[1746696065162,39.764795,153.03,153.02,222.30617391]
[1746696065477,39.764795,153.03,153.02,228.84126736]
[1746696066873,39.764795,153.03,153.02,222.30617391]
[1746696068855,39.764795,153.03,153.02,139.50617391]
[1746696071568,39.764795,153.03,153.02,146.04126736]
[1746696071769,39.764795,153.03,153.02,156.62816639]
[1746696072374,39.764795,153.03,153.02,150.09307294]
[1746696072975,39.764795,153.03,153.02,156.62816639]
[1746696073566,39.764795,153.03,153.02,150.09307294]
[1746696074173,39.764795,153.03,153.02,156.62816639]
[1746696074572,39.764795,153.03,153.02,150.09307294]
[1746696075773,39.764795,153.03,153.02,131.44342408]
[1746696075980,39.764795,153.03,153.02,150.09307294]
[1746696077674,39.764795,153.03,153.02,142.59307294]
[1746696078077,39.764795,153.03,153.02,149.12816639]
[1746696079478,39.764795,153.03,153.02,161.52816639]
[1746696083782,39.764795,153.03,153.02,244.32816639]
[1746696088489,39.764795,153.03,153.02,75.04689903]
[1746696088667,44.65153366,153.03,153.02,75.75652505]
[1746696093596,44.65153366,153.03,153.02,82.2916185]
[1746696105407,44.65153366,153.03,153.02,70.99509345]
[1746696105600,44.65153366,153.03,153.02,82.2916185]
[1746696106108,44.65153366,153.03,153.02,66.2316185]
[1746696107693,44.65153366,153.03,153.02,62.1513023]
[1746696114224,44.65153366,153.03,153.02,54.93509345]
[1746696114400,44.65153366,153.03,153.02,62.1513023]
[1746696116840,44.65153366,153.03,153.02,54.93509345]
[1746696117040,44.65153366,153.03,153.02,62.1513023]
[1746696119142,44.65153366,153.03,153.02,55.61620885]
[1746696121661,44.65153366,153.03,153.02,29.61620885]
[1746696122754,44.65153366,153.03,153.02,22.4]
[1746696122944,44.65153366,153.03,153.02,29.61620885]
[1746696123141,44.65153366,153.03,153.02,46.15320133]
[1746696125768,44.65153366,153.03,153.02,72.15320133]
[1746696126958,44.65153366,153.03,153.02,58.40189903]
[1746696127282,44.65153366,153.03,153.02,65.61810788]
[1746696127566,44.65153366,153.03,153.02,58.40189903]
[1746696127772,44.65153366,153.03,153.02,65.61810788]
[1746696128072,44.65153366,153.03,153.02,58.40189903]
[1746696128272,44.65153366,153.03,153.02,65.61810788]
[1746696131659,44.65153366,153.03,153.02,72.15320133]
[1746696131856,44.65153366,153.03,153.02,64.80285019]
[1746696132985,6.53229836,153.09,153.08,10.0]
[1746696133188,6.53125204,153.11,153.09,10.0]
[1746696133369,6.53125204,153.11,153.09,17.21620885]
[1746696133883,6.53125204,153.11,153.09,10.0]
[1746696135269,30.07559099,153.11,153.07,10.0]
[1746696135467,7.21620885,153.1,153.07,10.0]
[1746696135660,7.21620885,153.1,153.06,10.0]
[1746696136686,30.07857738,153.09,153.06,10.0]
[1746696136896,1.5404,153.07,153.04,10.0]
[1746696137192,1.5404,153.07,153.06,10.0]
[1746696138994,15.28956762,153.07,153.06,10.0]
[1746696139683,8.07335877,153.07,153.06,10.0]
[1746696139896,19.35185286,153.07,153.06,10.0]
[1746696140992,8.07335877,153.07,153.06,10.0]
[1746696141893,8.07335877,153.07,153.04,10.0]
[1746696142194,8.07335877,153.07,153.03,11.27849409]
[1746696142195,8.07335877,153.07,153.06,10.0]
[1746696143492,7.55624076,153.07,153.06,10.0]
[1746696144294,7.55624076,153.07,153.06,10.5]
[1746696145196,12.45105517,153.07,153.06,10.5]
[1746696148593,11.42777318,153.07,153.06,10.5]
[1746696149806,11.42777318,153.07,153.06,0.5]
[1746696149997,11.42777318,153.07,153.06,10.5]
[1746696151397,11.42777318,153.07,153.06,0.5]
[1746696151701,11.42777318,153.07,153.06,10.5]
[1746696153980,11.42777318,153.07,153.06,0.5]
[1746696154403,11.42777318,153.07,153.06,10.5]
[1746696154899,11.42777318,153.07,153.06,0.5]
[1746696155104,11.42777318,153.07,153.06,10.5]
[1746696155884,11.42777318,153.07,153.06,0.5]
[1746696156407,11.42777318,153.07,153.06,10.5]
[1746696163218,11.42777318,153.07,153.06,0.5]
[1746696163421,11.42777318,153.07,153.06,10.5]
[1746696164513,11.42777318,153.07,153.06,0.5]
[1746696164833,11.42777318,153.07,153.06,10.5]
[1746696165022,11.42777318,153.07,153.06,0.5]
[1746696165196,11.42777318,153.07,153.06,10.5]
[1746696165618,11.42777318,153.07,153.06,0.5]
[1746696166021,11.42777318,153.07,153.06,10.5]
[1746696166617,11.42777318,153.07,153.06,0.5]
[1746696166799,11.42777318,153.07,153.06,10.5]
[1746696168731,11.42777318,153.07,153.06,17.71726115]
[1746696168906,6.53295877,153.07,153.06,17.71726115]
[1746696170628,6.53295877,153.07,153.06,7.71726115]
[1746696170924,6.53167864,153.1,153.07,10.0]
[1746696171109,6.53167864,153.1,153.08,10.0]
[1746696171832,6.53125204,153.11,153.08,10.0]
[1746696172018,4.89330457,153.09,153.08,10.0]
[1746696173226,11.4255668,153.09,153.08,10.0]
[1746696178042,11.4255668,153.09,153.06,10.5]
[1746696178221,18.64282795,153.09,153.06,10.5]
[1746696178426,4.89330457,153.08,153.06,10.5]
[1746696179141,4.89330457,153.07,153.06,10.5]
[1746696180843,11.42626334,153.07,153.06,10.5]
[1746696185748,11.42626334,153.07,153.06,0.5]
[1746696185929,11.42626334,153.07,153.06,10.5]
[1746696188229,11.42626334,153.07,153.06,17.71726115]
[1746696188547,11.42626334,153.07,153.06,10.5]
[1746696191350,11.42626334,153.07,153.06,17.71726115]
[1746696195163,11.42626334,153.07,153.06,10.5]
[1746696197234,11.42626334,153.07,153.06,0.5]
[1746696197443,11.42626334,153.07,153.06,10.5]
[1746696198349,11.42626334,153.07,153.06,0.5]
[1746696198554,11.42626334,153.07,153.06,10.5]
[1746696199158,11.42626334,153.07,153.06,0.5]
[1746696199566,11.42626334,153.07,153.06,10.5]
[1746696200264,4.89330457,153.07,153.06,17.71726115]
[1746696204568,4.89330457,153.07,153.06,17.21726115]
[1746696206268,4.89330457,153.07,153.06,29.61726115]
[1746696206646,4.89330457,153.07,153.06,142.42509464]
[1746696209770,23.54204379,153.15,153.06,142.42509464]
[1746696209971,6.52997257,153.14,153.1,17.21726115]
[1746696210164,6.52997257,153.14,153.11,10.0]
[1746696210461,6.52997257,153.14,153.11,7.21726115]
[1746696210664,6.52997257,153.14,153.11,17.21726115]
[1746696210965,4.88869311,153.13,153.11,17.21726115]
[1746696211158,6.53082549,153.12,153.11,17.21726115]
[1746696211647,6.53082549,153.12,153.11,10.0]
[1746696212369,11.4195186,153.12,153.11,10.0]
[1746696213041,11.4195186,153.12,153.1,17.21726115]
[1746696213244,11.4195186,153.12,153.11,10.0]
[1746696216371,11.4195186,153.12,153.11,17.5]
[1746696216670,11.4195186,153.12,153.11,7.5]
[1746696216871,18.63677975,153.12,153.11,7.5]
[1746696218881,11.4195186,153.12,153.11,7.5]
[1746696220077,18.63677975,153.12,153.11,7.5]
[1746696225390,34.96384349,153.12,153.09,10.0]
[1746696225978,27.74658234,153.12,153.09,10.0]
[1746696226183,27.74658234,153.12,153.1,10.0]
[1746696226663,27.74658234,153.12,153.09,10.0]
[1746696226863,27.74658234,153.12,153.08,17.21726115]
[1746696226864,4.88869311,153.11,153.08,17.21726115]
[1746696227185,6.53167864,153.1,153.09,17.5]
[1746696227883,11.42037175,153.1,153.09,17.5]
[1746696229786,11.42037175,153.1,153.09,7.5]
[1746696229993,11.42037175,153.1,153.09,17.5]
[1746696230900,11.42037175,153.1,153.09,10.0]
[1746696231497,11.42037175,153.1,153.08,17.21726115]
[1746696231675,11.42037175,153.1,153.09,10.0]
[1746696232707,11.42037175,153.1,153.09,10.5]
[1746696237102,4.88869311,153.1,153.09,10.5]
[1746696237404,11.42037175,153.1,153.09,10.5]
[1746696239204,11.42037175,153.1,153.09,17.71726115]
[1746696240703,4.88869311,153.1,153.09,17.71726115]
[1746696245794,4.88869311,153.1,153.09,10.5]
[1746696245995,4.88869311,153.1,153.09,17.71726115]
[1746696247818,4.88869311,153.1,153.09,10.5]
[1746696248322,18.6376329,153.1,153.09,10.5]
[1746696249815,11.42037175,153.1,153.09,10.5]
[1746696250022,4.88869311,153.1,153.09,10.5]
[1746696250320,11.42037175,153.1,153.09,10.5]
[1746696254229,4.88869311,153.1,153.09,17.71726115]
[1746696256728,4.88869311,153.1,153.09,36.36691001]
[1746696257027,6.52954619,153.15,153.12,10.0]
[1746696257606,6.52954619,153.15,153.13,10.0]
[1746696258023,6.52954619,153.15,153.12,10.0]
[1746696258219,6.52954619,153.15,153.13,10.0]
[1746696258825,6.52954619,153.15,153.12,10.0]
[1746696259027,4.89274498,153.14,153.13,10.0]
[1746696259398,4.89274498,153.14,153.12,10.0]
[1746696259625,4.89274498,153.14,153.13,10.0]
[1746696260233,11.42271755,153.14,153.13,10.0]
[1746696260618,11.42271755,153.14,153.12,10.0]
[1746696261121,11.42271755,153.14,153.13,10.0]
[1746696262028,11.42271755,153.14,153.12,10.0]
[1746696262324,11.42271755,153.14,153.13,10.0]
[1746696262514,6.52954619,153.15,153.13,10.0]
[1746696263116,6.52954619,153.15,153.14,10.0]
[1746696263523,11.4189995,153.15,153.14,10.0]
[1746696264738,11.4189995,153.15,153.13,10.0]
[1746696265028,11.4189995,153.15,153.14,10.0]
[1746696266824,11.4189995,153.15,153.13,10.0]
[1746696267141,11.4189995,153.15,153.14,10.0]
[1746696267726,11.4189995,153.15,153.13,10.0]
[1746696267925,11.4189995,153.15,153.14,10.0]
[1746696268130,11.4189995,153.15,153.14,17.21726115]
[1746696268447,4.88945331,153.15,153.14,61.86691001]
[1746696268614,4.88945331,153.15,153.14,64.65154789]
[1746696268819,4.88945331,153.15,153.14,46.00189903]
[1746696269043,4.88945331,153.15,153.14,43.21726115]
[1746696269237,4.88945331,153.15,153.14,10.0]
[1746696269416,11.4189995,153.15,153.13,10.0]
[1746696269616,18.63626065,153.15,153.13,10.0]
[1746696269920,11.4189995,153.15,153.13,10.0]
[1746696270332,4.88945331,153.14,153.13,10.0]
[1746696270929,4.88945331,153.14,153.12,10.0]
[1746696271126,4.88945331,153.14,153.13,10.0]
[1746696271320,11.41942588,153.14,153.13,10.0]
[1746696271933,18.63668703,153.14,153.11,10.0]
[1746696272233,18.63668703,153.14,153.12,10.0]
[1746696272542,4.88945331,153.13,153.11,10.0]
[1746696273123,4.88945331,153.13,153.12,10.0]
[1746696273530,11.41985231,153.13,153.12,10.0]
[1746696276445,18.63711346,153.13,153.1,10.0]
[1746696276652,7.21726115,153.11,153.1,10.0]
[1746696277326,7.21726115,153.11,153.06,49.45726115]
[1746696277327,7.21726115,153.11,153.08,10.0]
[1746696277531,7.21726115,153.11,153.1,10.0]
[1746696277743,17.80195947,153.11,153.1,10.0]
[1746696278138,22.69141278,153.11,153.1,10.0]
[1746696278927,11.42070535,153.11,153.1,10.0]
[1746696279254,22.69141278,153.11,153.1,10.0]
[1746696279857,22.69141278,153.11,153.08,10.0]
[1746696280039,22.69141278,153.11,153.1,10.0]
[1746696280241,22.69141278,153.11,153.08,10.0]
[1746696280545,22.69141278,153.11,153.1,10.0]
[1746696282481,22.69141278,153.11,153.07,10.0]
[1746696282657,11.42070535,153.11,153.1,10.0]
[1746696282844,22.69141278,153.11,153.1,10.0]
[1746696285545,39.01954288,153.11,153.1,10.0]
[1746696287350,39.01954288,153.11,153.09,10.0]
[1746696287551,11.27070743,153.1,153.09,10.0]
[1746696288776,22.69183938,153.1,153.09,10.0]
[1746696289481,22.69183938,153.1,153.08,10.0]
[1746696289688,11.27070743,153.09,153.08,10.0]
[1746696290063,11.27070743,153.09,153.06,10.0]
[1746696290265,4.88945331,153.08,153.06,10.0]
[1746696290659,4.88945331,153.08,153.07,10.0]
[1746696290897,11.42198531,153.08,153.06,10.0]
[1746696291096,11.42198531,153.08,153.07,10.0]
[1746696291276,11.42198531,153.08,153.06,10.0]
[1746696291466,4.88945331,153.08,153.07,10.0]
[1746696293986,11.42198531,153.08,153.07,10.0]
[1746696296075,4.88945331,153.08,153.07,10.0]
[1746696297885,11.42198531,153.08,153.07,10.0]
[1746696298095,18.63642432,153.08,153.06,10.0]
[1746696298267,4.88945331,153.08,153.07,10.0]
[1746696302900,11.42198531,153.08,153.07,10.0]
[1746696303589,18.63642432,153.08,153.06,10.0]
[1746696303777,7.21443901,153.07,153.06,10.0]
[1746696304094,6.5333856,153.06,153.03,10.0]
[1746696304292,13.74782461,153.06,153.05,10.0]
[1746696304493,13.74782461,153.06,153.01,10.0]
[1746696304494,30.08128861,153.06,153.01,10.0]
[1746696304804,7.21443901,153.03,153.02,10.0]
[1746696305101,12.10389232,153.03,153.02,10.0]
[1746696305502,12.10389232,153.03,152.99,10.0]
[1746696305796,7.21443901,153.0,152.99,10.0]
[1746696306002,7.21443901,153.01,152.99,10.0]
[1746696306206,11.42540102,153.0,152.99,10.0]
[1746696306376,11.42540102,153.0,152.98,10.0]
[1746696306685,11.42540102,153.0,152.99,10.0]
[1746696307503,4.88945331,153.0,152.99,10.0]
[1746696308385,11.42540102,153.0,152.99,10.0]
[1746696308591,4.88945331,153.0,152.99,10.0]
[1746696308906,11.28243139,153.04,153.02,10.0]
[1746696309287,136.6,153.06,153.02,10.0]
[1746696309685,11.28243139,153.04,153.02,10.0]
[1746696309907,4.8707685,153.03,153.02,10.0]
[1746696310502,11.4054349,153.03,153.02,10.0]
[1746696310714,4.8707685,153.03,153.02,21.28243139]
[1746696311178,6.53449282,153.04,153.03,10.0]
[1746696312116,4.86984379,153.04,153.03,10.0]
[1746696314123,11.4040832,153.04,153.03,10.0]
[1746696314417,22.68651459,153.04,153.03,10.0]
[1746696316318,22.68651459,153.04,153.02,10.0]
[1746696316513,17.81709779,153.03,153.02,10.0]
[1746696317318,22.68694158,153.03,153.01,10.0]
[1746696317623,11.40451019,153.03,153.02,10.0]
[1746696318518,11.40451019,153.03,153.01,10.0]
[1746696318823,11.28243139,153.02,153.01,10.0]
[1746696319128,16.15227518,153.02,153.01,10.0]
[1746696320621,4.86984379,153.02,153.01,10.0]
[1746696321126,11.40493724,153.02,153.01,10.0]
[1746696322336,4.86984379,153.02,153.01,10.0]
[1746696330911,4.86984379,153.02,153.01,53.81795194]
[1746696331114,4.86984379,153.02,153.01,73.9855008]
[1746696331714,4.86984379,153.02,153.01,48.80033139]
[1746696332030,17.81581699,153.06,153.05,10.0]
[1746696332935,11.40829139,153.06,153.05,10.0]
[1746696334235,6.5333856,153.06,153.05,10.0]
[1746696336135,22.69104462,153.06,153.05,10.0]
[1746696336634,22.69104462,153.06,153.04,10.0]
[1746696336930,11.28243139,153.05,153.04,10.0]
[1746696337511,22.69147149,153.05,153.04,10.0]
[1746696338907,11.4090401,153.05,153.04,10.0]
[1746696339334,22.69147149,153.05,153.04,10.0]
[1746696340032,22.69147149,153.05,153.03,10.0]
[1746696340211,11.4090401,153.05,153.04,10.0]
[1746696340411,6.53423941,153.04,153.03,10.0]
[1746696345753,11.41484946,153.04,153.03,10.0]
[1746696349060,4.88061005,153.04,153.03,10.0]
[1746696349255,11.41484946,153.04,153.03,10.0]
[1746696352062,4.88061005,153.04,153.03,21.28243139]
[1746696353351,4.88061005,153.04,153.03,10.0]
[1746696353742,4.88061005,153.04,153.03,17.21713432]
[1746696355744,4.88061005,153.04,153.03,21.27657256]
[1746696356144,4.88061005,153.04,153.03,10.0]
[1746696357079,11.41484946,153.04,153.03,10.0]
[1746696358159,11.41484946,153.04,153.02,10.0]
[1746696358355,11.41484946,153.04,153.03,10.0]
[1746696358758,11.41484946,153.04,153.02,10.0]
[1746696359153,4.88061005,153.03,153.02,10.0]
[1746696361581,11.41527645,153.03,153.02,10.0]
[1746696361777,11.41527645,153.03,153.01,10.0]
[1746696361778,22.69184901,153.03,153.01,10.0]
[1746696362085,11.27657256,153.02,152.98,10.0]
[1746696362264,11.27657256,153.0,152.97,10.0]
[1746696362568,4.88061005,153.01,152.98,10.0]
[1746696362569,16.15718261,153.01,152.98,10.0]
[1746696363275,4.88061005,153.0,152.98,10.0]
[1746696363869,6.53637492,152.99,152.98,10.0]
[1746696364268,11.41698497,152.99,152.97,10.0]
[1746696364456,11.41698497,152.99,152.98,10.0]
[1746696364968,11.41698497,152.99,152.97,10.0]
[1746696365185,4.88061005,152.99,152.98,21.27657256]
[1746696365877,6.53524346,153.02,152.98,21.27657256]
[1746696366181,6.53524346,153.02,153.0,11.27657256]
[1746696366983,6.53423941,153.04,153.01,10.0]
[1746696367161,6.53423941,153.04,153.02,10.0]
[1746696368585,6.53423941,153.04,153.02,21.27657256]
[1746696368769,6.53423941,153.04,153.03,10.0]
[1746696369576,6.5333856,153.06,153.04,10.0]
[1746696369774,6.5333856,153.06,153.0,6.53570498]
[1746696369775,6.5333856,153.06,153.05,10.0]
[1746696371572,6.5333856,153.06,153.04,21.27657256]
[1746696371760,6.5333856,153.06,153.05,10.0]
[1746696371961,14.45623159,153.07,153.05,21.27657256]
[1746696372263,14.45623159,153.07,153.06,10.0]
[1746696372861,14.45623159,153.07,153.05,10.0]
[1746696373176,42.06520109,153.07,153.04,10.0]
[1746696373387,11.27657256,153.05,153.03,10.0]
[1746696373873,11.27657256,153.05,153.02,10.0]
[1746696374070,11.27657256,153.05,153.03,10.0]
[1746696374576,4.88343825,153.04,153.03,10.0]
[1746696375681,11.41767766,153.04,153.03,10.0]
[1746696375984,22.69425022,153.04,153.03,10.0]
[1746696376163,22.69425022,153.04,153.02,10.0]
[1746696376476,22.69425022,153.04,153.03,10.0]
[1746696377383,39.02984875,153.04,153.01,10.0]
[1746696377579,11.27657256,153.03,153.01,10.0]
[1746696377778,6.53509345,153.02,153.01,10.0]
[1746696378594,11.4185317,153.02,153.01,10.0]
[1746696384875,4.88343825,153.02,153.01,10.0]
[1746696386001,11.4185317,153.02,153.01,10.0]
[1746696387282,22.69510426,153.02,153.0,10.0]
[1746696387603,11.4185317,153.02,153.01,10.0]
[1746696388104,22.69510426,153.02,153.01,10.0]
[1746696388899,11.4185317,153.02,153.01,10.0]
[1746696390905,4.88343825,153.02,153.01,10.0]
[1746696391113,4.88343825,153.02,153.01,21.27657256]
[1746696394888,4.88343825,153.02,153.01,10.0]
[1746696395093,4.88343825,153.02,153.01,21.27657256]
[1746696395289,11.4185317,153.02,153.01,10.0]
[1746696397915,4.88343825,153.02,153.01,21.27657256]
[1746696399819,4.88343825,153.02,153.01,10.0]
[1746696400320,11.4185317,153.02,153.01,10.0]
[1746696402835,27.75626532,153.02,152.99,10.0]
[1746696403129,27.75626532,153.02,152.98,10.0]
[1746696403130,4.88343825,153.01,152.98,10.0]
[1746696403315,16.16001081,153.01,152.99,10.0]
[1746696403509,16.16001081,153.01,152.98,10.0]
[1746696403714,4.88343825,153.0,152.99,10.0]
[1746696404833,11.41938596,153.0,152.99,10.0]
[1746696405334,11.41938596,153.0,152.98,10.0]
[1746696405710,4.88343825,152.99,152.98,10.0]
[1746696406739,4.88343825,152.99,152.97,10.0]
[1746696406907,6.53637492,152.99,152.98,10.0]
[1746696408037,11.42326073,152.99,152.98,10.0]
[1746696409821,11.42326073,152.99,152.97,21.27657256]
[1746696410023,4.88688581,152.98,152.97,21.27657256]
[1746696411337,4.88688581,152.98,152.97,10.0]
[1746696411535,4.88688581,152.98,152.96,10.0]
[1746696411834,11.42329277,152.97,152.96,10.0]
[1746696425684,11.42329277,152.97,152.94,21.27657256]
[1746696425892,11.42329277,152.97,152.96,10.0]
[1746696430094,11.42329277,152.97,152.9,18.64964886]
[1746696430095,156.90124886,152.96,152.82,10.0]
[1746696430305,11.27657256,152.9,152.88,10.0]
[1746696430899,4.88606325,152.89,152.88,10.0]
[1746696431791,11.42671339,152.89,152.88,10.0]
[1746696434504,6.54065014,152.89,152.88,10.0]
[1746696436593,6.54022236,152.9,152.89,10.0]
[1746696436988,11.39542679,152.9,152.89,10.0]
[1746696437994,11.39542679,152.9,152.88,10.0]
[1746696438375,11.39542679,152.9,152.89,10.0]
[1746696439993,6.54022236,152.9,152.89,10.0]
[1746696441607,17.81679492,152.9,152.88,10.0]
[1746696444197,11.27657256,152.89,152.87,10.0]
[1746696444703,11.27657256,152.88,152.87,10.0]
[1746696445317,11.27657256,152.89,152.87,10.0]
[1746696445609,11.27657256,152.88,152.87,10.0]
[1746696445801,6.54150585,152.87,152.86,10.0]
[1746696446005,17.81807841,152.87,152.86,10.0]
[1746696446387,34.17184304,152.87,152.83,10.0]
[1746696446609,11.27657256,152.84,152.83,10.0]
[1746696448115,17.8193624,152.84,152.83,10.0]
[1746696448407,17.8193624,152.84,152.8,11.27657256]
[1746696448408,22.67158432,152.84,152.81,10.0]
[1746696448613,22.67158432,152.84,152.82,10.0]
[1746696448781,22.67158432,152.84,152.8,10.0]
[1746696448986,22.67158432,152.84,152.82,10.0]
[1746696449192,17.8193624,152.84,152.8,10.0]
[1746696449396,11.27657256,152.82,152.81,10.0]
[1746696449615,11.27657256,152.83,152.81,10.0]
[1746696450310,6.54364611,152.82,152.81,10.0]
[1746696450993,11.27657256,152.84,152.81,10.0]
[1746696451311,11.27657256,152.85,152.81,10.0]
[1746696451613,34.17334083,152.86,152.82,10.0]
[1746696451811,22.89676827,152.86,152.82,21.27657256]
[1746696452011,4.84839247,152.85,152.82,11.27657256]
[1746696452314,6.54278984,152.84,152.82,10.0]
[1746696453222,6.54278984,152.84,152.82,9.8047567]
[1746696453413,6.54278984,152.84,152.81,9.8047567]
[1746696453716,6.54278984,152.84,152.82,9.8047567]
[1746696454108,6.54278984,152.84,152.83,9.8047567]
[1746696454518,6.54278984,152.84,152.82,9.8047567]
[1746696454519,17.8193624,152.84,152.82,9.8047567]
[1746696456796,4.84612172,152.83,152.82,9.8047567]
[1746696458024,6.54278984,152.84,152.82,9.8047567]
[1746696458423,11.27657256,152.84,152.83,9.8047567]
[1746696458799,55.59916272,152.88,152.83,9.8047567]
[1746696459016,11.27657256,152.85,152.83,9.8047567]
[1746696459207,4.84700643,152.84,152.83,9.8047567]
[1746696459710,22.66636883,152.84,152.82,9.8047567]
[1746696460226,22.66636883,152.84,152.83,9.8047567]
[1746696460396,22.66636883,152.84,152.79,11.27657256]
[1746696460397,22.66636883,152.84,152.82,9.8047567]
[1746696460796,39.02334344,152.84,152.82,9.8047567]
[1746696461818,39.02334344,152.84,152.81,9.8047567]
[1746696462036,34.17633701,152.84,152.82,9.8047567]
[1746696462326,11.27657256,152.83,152.82,9.8047567]
[1746696462524,11.27657256,152.83,152.8,9.8047567]
[1746696462728,11.27657256,152.82,152.8,9.8047567]
[1746696462900,16.12372491,152.82,152.8,9.8047567]
[1746696463105,11.27657256,152.81,152.79,9.8047567]
[1746696464102,136.6,152.85,152.79,9.8047567]
[1746696464307,6.54364611,152.82,152.81,9.8047567]